[Event "Late-Titled-Tuesday-Blitz-June-18-2024"]
[Site "Chess.com"]
[Date "2024.06.18"]
[Round "3"]
[White "The_Sherman_Variation"]
[Black "pinelone"]
[Result "1-0"]
[WhiteElo "2655"]
[BlackElo "2467"]
[TimeControl "180+1"]
[EndTime "14:27:53 PDT"]
[Termination "The_Sherman_Variation won by resignation"]

1. Nf3 {[%clk 0:02:57.3]} 1... c5 {[%clk 0:02:59.2]} 2. e4 {[%clk 0:02:56.1]}
2... g6 {[%clk 0:02:58.1]} 3. c3 {[%clk 0:02:53.9]} 3... d5 {[%clk 0:02:48.9]}
4. exd5 {[%clk 0:02:48.6]} 4... Qxd5 {[%clk 0:02:48.9]} 5. d4 {[%clk 0:02:48.1]}
5... Nc6 {[%clk 0:02:43.5]} 6. Nbd2 {[%clk 0:02:44.8]} 6... cxd4 {[%clk
0:02:41.2]} 7. Bc4 {[%clk 0:02:44.7]} 7... Qd8 {[%clk 0:02:22.4]} 8. O-O {[%clk
0:02:38.8]} 8... Nf6 {[%clk 0:02:18.3]} 9. cxd4 {[%clk 0:02:34.5]} 9... Bg7
{[%clk 0:02:12]} 10. Nb3 {[%clk 0:02:27.4]} 10... O-O {[%clk 0:02:11.4]} 11. h3
{[%clk 0:02:18.1]} 11... Bf5 {[%clk 0:02:02.9]} 12. Be3 {[%clk 0:02:15.4]} 12...
Rc8 {[%clk 0:02:01.3]} 13. Rc1 {[%clk 0:02:14.4]} 13... Nd5 {[%clk 0:02:00.7]}
14. a3 {[%clk 0:02:09.1]} 14... Nxe3 {[%clk 0:01:28.3]} 15. fxe3 {[%clk
0:02:10]} 15... Na5 {[%clk 0:01:05.5]} 16. Nxa5 {[%clk 0:02:08.4]} 16... Qxa5
{[%clk 0:01:06.1]} 17. Qb3 {[%clk 0:02:05.1]} 17... Qb6 {[%clk 0:01:04.2]} 18.
Qxb6 {[%clk 0:02:03.9]} 18... axb6 {[%clk 0:01:04.6]} 19. Ng5 {[%clk 0:02:00.1]}
19... Bh6 {[%clk 0:00:57.2]} 20. h4 {[%clk 0:01:59.5]} 20... Bxg5 {[%clk
0:00:56.8]} 21. hxg5 {[%clk 0:01:59.3]} 21... Rc6 {[%clk 0:00:15.4]} 22. Bd5
{[%clk 0:01:57.2]} 22... Rxc1 {[%clk 0:00:08.2]} 23. Rxc1 {[%clk 0:01:58.1]}
23... Bc8 {[%clk 0:00:06.8]} 24. Rc7 {[%clk 0:01:55.5]} 24... e6 {[%clk
0:00:06.8]} 25. Bf3 {[%clk 0:01:44.8]} 25... Rd8 {[%clk 0:00:06.3]} 26. Kf2
{[%clk 0:01:42.8]} 26... Kf8 {[%clk 0:00:05.9]} 27. Ke2 {[%clk 0:01:41.3]} 27...
Ke8 {[%clk 0:00:05.9]} 28. Bxb7 {[%clk 0:01:41.8]} 28... Rd7 {[%clk 0:00:02.6]}
29. Rxc8+ {[%clk 0:01:40.8]} 29... Ke7 {[%clk 0:00:03]} 30. Be4 {[%clk
0:01:40.7]} 1-0

[Event "Late-Titled-Tuesday-Blitz-June-18-2024"]
[Site "Chess.com"]
[Date "2024.06.18"]
[Round "3"]
[White "Grischuk"]
[Black "Andrei_Skvortsov"]
[Result "1-0"]
[WhiteElo "3131"]
[BlackElo "2771"]
[TimeControl "180+1"]
[EndTime "14:27:59 PDT"]
[Termination "Grischuk won by resignation"]

1. d4 {[%clk 0:03:00.9]} 1... e6 {[%clk 0:02:58.6]} 2. Bf4 {[%clk 0:02:59.4]}
2... Nf6 {[%clk 0:02:52.2]} 3. e3 {[%clk 0:02:58.8]} 3... Bd6 {[%clk 0:02:51.8]}
4. Bg5 {[%clk 0:02:52.6]} 4... Be7 {[%clk 0:02:48.6]} 5. Nd2 {[%clk 0:02:52]}
5... d5 {[%clk 0:02:48.5]} 6. Ngf3 {[%clk 0:02:49.9]} 6... O-O {[%clk
0:02:48.1]} 7. Bd3 {[%clk 0:02:43.6]} 7... c5 {[%clk 0:02:47]} 8. c3 {[%clk
0:02:43.6]} 8... b6 {[%clk 0:02:43.5]} 9. Ne5 {[%clk 0:02:34.9]} 9... h6 {[%clk
0:02:41.6]} 10. h4 {[%clk 0:02:29.1]} 10... Qc7 {[%clk 0:02:33.2]} 11. Bf4
{[%clk 0:02:01]} 11... Bd6 {[%clk 0:02:26.3]} 12. g4 {[%clk 0:01:56.5]} 12...
Nfd7 {[%clk 0:02:17.1]} 13. Ndf3 {[%clk 0:01:55.7]} 13... f6 {[%clk 0:02:09.5]}
14. Ng6 {[%clk 0:01:48.9]} 14... Bxf4 {[%clk 0:01:50.2]} 15. exf4 {[%clk
0:01:43.8]} 15... Re8 {[%clk 0:01:49.4]} 16. g5 {[%clk 0:01:29.5]} 16... Nc6
{[%clk 0:01:22.9]} 17. gxh6 {[%clk 0:01:24.8]} 17... gxh6 {[%clk 0:01:22.9]} 18.
Rg1 {[%clk 0:01:12.5]} 18... Kf7 {[%clk 0:01:22]} 19. Nfe5+ {[%clk 0:00:48.3]}
19... Ndxe5 {[%clk 0:01:21.9]} 20. fxe5 {[%clk 0:00:49.2]} 20... fxe5 {[%clk
0:00:55.3]} 21. Qh5 {[%clk 0:00:38.9]} 21... Kf6 {[%clk 0:00:55.8]} 22. Qxh6
{[%clk 0:00:33.7]} 1-0

[Event "Late-Titled-Tuesday-Blitz-June-18-2024"]
[Site "Chess.com"]
[Date "2024.06.18"]
[Round "3"]
[White "Zampronha1971"]
[Black "simaopdias"]
[Result "1/2-1/2"]
[WhiteElo "2403"]
[BlackElo "2202"]
[TimeControl "180+1"]
[EndTime "14:28:04 PDT"]
[Termination "Game drawn by repetition"]

1. e4 {[%clk 0:03:00.9]} 1... c5 {[%clk 0:02:59.8]} 2. Nf3 {[%clk 0:03:00.6]}
2... g6 {[%clk 0:03:00.5]} 3. d4 {[%clk 0:03:00.9]} 3... cxd4 {[%clk 0:03:01.4]}
4. Nxd4 {[%clk 0:03:01.3]} 4... Nc6 {[%clk 0:03:01.9]} 5. Nc3 {[%clk 0:03:01.6]}
5... Bg7 {[%clk 0:03:02.5]} 6. Be3 {[%clk 0:03:02]} 6... Nf6 {[%clk 0:03:03.2]}
7. Bc4 {[%clk 0:03:01.9]} 7... Qa5 {[%clk 0:03:03.5]} 8. O-O {[%clk 0:02:57]}
8... O-O {[%clk 0:03:01.8]} 9. Bb3 {[%clk 0:02:56]} 9... d6 {[%clk 0:03:00.3]}
10. h3 {[%clk 0:02:55.9]} 10... Bd7 {[%clk 0:03:00]} 11. f4 {[%clk 0:02:54.1]}
11... Nxd4 {[%clk 0:02:59.3]} 12. Bxd4 {[%clk 0:02:53.4]} 12... Bc6 {[%clk
0:03:00.2]} 13. Qd3 {[%clk 0:02:52.6]} 13... Nd7 {[%clk 0:02:58.5]} 14. Bxg7
{[%clk 0:02:51.8]} 14... Kxg7 {[%clk 0:02:59.4]} 15. Rae1 {[%clk 0:02:49.4]}
15... Nc5 {[%clk 0:02:56.4]} 16. Qd4+ {[%clk 0:02:47.8]} 16... Kg8 {[%clk
0:02:56.9]} 17. e5 {[%clk 0:02:42.1]} 17... Nxb3 {[%clk 0:02:54.1]} 18. axb3
{[%clk 0:02:42.2]} 18... Qc5 {[%clk 0:02:54.6]} 19. Qxc5 {[%clk 0:02:42.1]}
19... dxc5 {[%clk 0:02:54.1]} 20. Rd1 {[%clk 0:02:36.8]} 20... Rad8 {[%clk
0:02:51]} 21. Kf2 {[%clk 0:02:36.7]} 21... Kg7 {[%clk 0:02:41.1]} 22. g3 {[%clk
0:02:36.2]} 22... f6 {[%clk 0:02:40.7]} 23. exf6+ {[%clk 0:02:32.7]} 23... exf6
{[%clk 0:02:41.6]} 24. Rfe1 {[%clk 0:02:30.5]} 24... Kf7 {[%clk 0:02:39]} 25.
Nb1 {[%clk 0:02:08.9]} 25... Rxd1 {[%clk 0:02:14.1]} 26. Rxd1 {[%clk 0:02:06.2]}
26... Re8 {[%clk 0:02:15]} 27. Rd2 {[%clk 0:01:28.3]} 27... h6 {[%clk
0:02:09.1]} 28. Rd1 {[%clk 0:01:26.3]} 28... Re4 {[%clk 0:02:03.6]} 29. Rd8
{[%clk 0:01:21.8]} 29... Be8 {[%clk 0:02:03.6]} 30. Nc3 {[%clk 0:01:20.2]} 30...
Re7 {[%clk 0:01:57.8]} 31. Na4 {[%clk 0:01:17.3]} 31... b6 {[%clk 0:01:44.6]}
32. Nc3 {[%clk 0:01:16.3]} 32... Bc6 {[%clk 0:01:42.2]} 33. Rc8 {[%clk
0:01:13.5]} 33... Bb7 {[%clk 0:01:34.8]} 34. Rb8 {[%clk 0:01:13.4]} 34... Bc6
{[%clk 0:01:34.4]} 35. Rc8 {[%clk 0:01:08.5]} 35... Be4 {[%clk 0:01:32.4]} 36.
Nxe4 {[%clk 0:01:06]} 36... Rxe4 {[%clk 0:01:33.3]} 37. Rc7+ {[%clk 0:01:03.2]}
37... Re7 {[%clk 0:01:33.7]} 38. Rc6 {[%clk 0:01:03]} 38... h5 {[%clk 0:01:30]}
39. g4 {[%clk 0:01:01]} 39... hxg4 {[%clk 0:01:29.2]} 40. hxg4 {[%clk
0:01:01.9]} 40... Kg7 {[%clk 0:01:24.9]} 41. Kf3 {[%clk 0:01:01.1]} 41... Kf7
{[%clk 0:01:24.9]} 42. g5 {[%clk 0:01:00.3]} 42... f5 {[%clk 0:01:22.1]} 43.
Rf6+ {[%clk 0:00:59.4]} 43... Kg7 {[%clk 0:01:22.8]} 44. Rc6 {[%clk 0:01:00.3]}
44... Kf7 {[%clk 0:01:23]} 45. c3 {[%clk 0:00:59.1]} 45... Re6 {[%clk
0:01:19.8]} 46. Rc7+ {[%clk 0:00:59.6]} 46... Re7 {[%clk 0:01:20.1]} 47. Rc6
{[%clk 0:01:00.1]} 47... Re6 {[%clk 0:01:20.5]} 48. Rc7+ {[%clk 0:01:00.5]}
48... Re7 {[%clk 0:01:20.9]} 49. Rc6 {[%clk 0:01:00.8]} 1/2-1/2

[Event "Late-Titled-Tuesday-Blitz-June-18-2024"]
[Site "Chess.com"]
[Date "2024.06.18"]
[Round "3"]
[White "aot317"]
[Black "Cuchulin"]
[Result "1-0"]
[WhiteElo "2547"]
[BlackElo "2269"]
[TimeControl "180+1"]
[EndTime "14:28:08 PDT"]
[Termination "aot317 won by resignation"]

1. d4 {[%clk 0:03:00.9]} 1... d5 {[%clk 0:02:59.5]} 2. c4 {[%clk 0:03:01]} 2...
e6 {[%clk 0:02:59.9]} 3. Nf3 {[%clk 0:03:01.4]} 3... a6 {[%clk 0:03:00.1]} 4. g3
{[%clk 0:03:01.2]} 4... dxc4 {[%clk 0:02:59.4]} 5. Bg2 {[%clk 0:03:01.7]} 5...
Bd7 {[%clk 0:02:59.5]} 6. Ne5 {[%clk 0:02:59.7]} 6... Bc6 {[%clk 0:02:54.1]} 7.
Nxc6 {[%clk 0:02:59]} 7... Nxc6 {[%clk 0:02:54.6]} 8. O-O {[%clk 0:02:53]} 8...
Nf6 {[%clk 0:02:39.9]} 9. Nc3 {[%clk 0:02:51.7]} 9... Be7 {[%clk 0:02:36.5]} 10.
Qa4 {[%clk 0:02:45.4]} 10... O-O {[%clk 0:02:28]} 11. Qxc4 {[%clk 0:02:40]}
11... Qxd4 {[%clk 0:02:27.2]} 12. Qxd4 {[%clk 0:02:38.5]} 12... Nxd4 {[%clk
0:02:27.3]} 13. Bxb7 {[%clk 0:02:38.7]} 13... Rab8 {[%clk 0:02:25.7]} 14. Bxa6
{[%clk 0:02:38.5]} 14... Nc2 {[%clk 0:02:19.7]} 15. Rb1 {[%clk 0:02:38.3]} 15...
Nd5 {[%clk 0:02:09.5]} 16. Nxd5 {[%clk 0:02:29.6]} 16... exd5 {[%clk 0:02:09.3]}
17. Bf4 {[%clk 0:02:23]} 17... Nb4 {[%clk 0:01:47.6]} 18. Bd3 {[%clk 0:02:16.4]}
18... Nxa2 {[%clk 0:01:30.1]} 19. Bxc7 {[%clk 0:02:13.4]} 19... Rb7 {[%clk
0:01:30.3]} 20. Be5 {[%clk 0:02:10.4]} 20... Nb4 {[%clk 0:01:29.5]} 21. Rfd1
{[%clk 0:02:00.7]} 21... Nxd3 {[%clk 0:01:23.5]} 22. Rxd3 {[%clk 0:02:01.6]}
22... Rd8 {[%clk 0:01:23]} 23. Rbd1 {[%clk 0:01:49.8]} 23... Rb5 {[%clk
0:01:23]} 24. e4 {[%clk 0:01:47]} 24... d4 {[%clk 0:00:56.3]} 25. Rxd4 {[%clk
0:01:43.7]} 25... Rxd4 {[%clk 0:00:53.4]} 26. Bxd4 {[%clk 0:01:43.6]} 26... f6
{[%clk 0:00:52.8]} 27. Bc3 {[%clk 0:01:40.4]} 27... Bb4 {[%clk 0:00:44]} 28. Rd5
{[%clk 0:01:23.5]} 28... Rb8 {[%clk 0:00:38.7]} 29. Bd4 {[%clk 0:01:21.3]} 29...
Kf7 {[%clk 0:00:35.8]} 30. Kf1 {[%clk 0:01:19.2]} 30... Ke6 {[%clk 0:00:35]} 31.
Ke2 {[%clk 0:01:18.9]} 31... f5 {[%clk 0:00:31.5]} 32. Re5+ {[%clk 0:01:16.9]}
32... Kd6 {[%clk 0:00:24.4]} 33. Rxf5 {[%clk 0:01:13.6]} 33... g6 {[%clk
0:00:24.5]} 34. Be5+ {[%clk 0:01:12.8]} 1-0

[Event "Late-Titled-Tuesday-Blitz-June-18-2024"]
[Site "Chess.com"]
[Date "2024.06.18"]
[Round "3"]
[White "Aygehovit1992"]
[Black "kaanadayhamle"]
[Result "0-1"]
[WhiteElo "2791"]
[BlackElo "2425"]
[TimeControl "180+1"]
[EndTime "14:28:09 PDT"]
[Termination "kaanadayhamle won by resignation"]

1. e4 {[%clk 0:03:00.9]} 1... e6 {[%clk 0:03:00.3]} 2. d4 {[%clk 0:03:00.6]}
2... d5 {[%clk 0:03:00.8]} 3. Nc3 {[%clk 0:03:01.5]} 3... dxe4 {[%clk
0:03:00.5]} 4. Nxe4 {[%clk 0:03:01]} 4... Nd7 {[%clk 0:03:01.4]} 5. Nf3 {[%clk
0:03:01]} 5... Ngf6 {[%clk 0:03:01.7]} 6. Nxf6+ {[%clk 0:03:01.5]} 6... Nxf6
{[%clk 0:03:02.6]} 7. Be3 {[%clk 0:03:02.1]} 7... b6 {[%clk 0:03:02.8]} 8. Bb5+
{[%clk 0:02:58.7]} 8... Bd7 {[%clk 0:03:03]} 9. Bd3 {[%clk 0:02:59]} 9... Bd6
{[%clk 0:03:03]} 10. Qe2 {[%clk 0:02:59.1]} 10... Bc6 {[%clk 0:03:02.5]} 11.
O-O-O {[%clk 0:02:59]} 11... O-O {[%clk 0:03:01.7]} 12. Kb1 {[%clk 0:02:59.2]}
12... a5 {[%clk 0:03:00]} 13. Ne5 {[%clk 0:02:59.3]} 13... Bb7 {[%clk
0:02:58.7]} 14. Rhg1 {[%clk 0:02:59.1]} 14... a4 {[%clk 0:02:58.1]} 15. g4
{[%clk 0:02:58.6]} 15... a3 {[%clk 0:02:58.1]} 16. b3 {[%clk 0:02:58.8]} 16...
Nd5 {[%clk 0:02:58.3]} 17. Bd2 {[%clk 0:02:59]} 17... Bb4 {[%clk 0:02:55.8]} 18.
c4 {[%clk 0:02:58.1]} 18... Nc3+ {[%clk 0:02:53.1]} 19. Bxc3 {[%clk 0:02:58.3]}
19... Bxc3 {[%clk 0:02:54]} 20. d5 {[%clk 0:02:53.6]} 20... exd5 {[%clk
0:02:46]} 21. Bxh7+ {[%clk 0:02:53.6]} 21... Kxh7 {[%clk 0:02:44]} 22. Qd3+
{[%clk 0:02:53.5]} 22... Kg8 {[%clk 0:02:42.3]} 23. Qxc3 {[%clk 0:02:54]} 23...
Re8 {[%clk 0:02:34.6]} 24. f4 {[%clk 0:02:47.5]} 24... Qf6 {[%clk 0:02:33]} 25.
Rgf1 {[%clk 0:02:40.8]} 25... d4 {[%clk 0:01:44]} 26. Qxd4 {[%clk 0:02:29.7]}
26... Rad8 {[%clk 0:01:44]} 27. Qe3 {[%clk 0:02:12.6]} 27... Rxd1+ {[%clk
0:01:43.9]} 28. Rxd1 {[%clk 0:02:13.2]} 28... g5 {[%clk 0:01:43.9]} 29. Qd4
{[%clk 0:01:42.9]} 29... gxf4 {[%clk 0:01:07.8]} 30. Nd7 {[%clk 0:01:35]} 30...
Qxd4 {[%clk 0:01:02.1]} 31. Rxd4 {[%clk 0:01:35.9]} 31... Re1+ {[%clk
0:00:58.7]} 32. Kc2 {[%clk 0:01:36.1]} 32... f3 {[%clk 0:00:59.2]} 33. Rf4
{[%clk 0:01:35.2]} 33... Re2+ {[%clk 0:00:56.1]} 34. Kc3 {[%clk 0:01:34.9]}
34... Rxa2 {[%clk 0:00:49.1]} 35. Nf6+ {[%clk 0:01:25.8]} 35... Kf8 {[%clk
0:00:46.4]} 36. Nd5 {[%clk 0:01:26.7]} 36... Bxd5 {[%clk 0:00:43.5]} 37. cxd5
{[%clk 0:01:27.6]} 37... Rf2 {[%clk 0:00:43.4]} 38. Kd3 {[%clk 0:01:20.9]} 38...
a2 {[%clk 0:00:41.4]} 39. Ra4 {[%clk 0:01:20.8]} 39... Rb2 {[%clk 0:00:34.7]}
40. Kc3 {[%clk 0:01:19.2]} 40... Rxh2 {[%clk 0:00:34.8]} 41. d6 {[%clk
0:01:16.2]} 41... cxd6 {[%clk 0:00:34.7]} 0-1

[Event "Late-Titled-Tuesday-Blitz-June-18-2024"]
[Site "Chess.com"]
[Date "2024.06.18"]
[Round "3"]
[White "madmax011"]
[Black "ansko1999"]
[Result "0-1"]
[WhiteElo "2398"]
[BlackElo "2599"]
[TimeControl "180+1"]
[EndTime "14:28:10 PDT"]
[Termination "ansko1999 won by resignation"]

1. d4 {[%clk 0:03:00.9]} 1... d5 {[%clk 0:02:58.9]} 2. c4 {[%clk 0:03:01]} 2...
c5 {[%clk 0:02:58.7]} 3. cxd5 {[%clk 0:02:57.9]} 3... Nf6 {[%clk 0:02:57]} 4.
Nf3 {[%clk 0:02:52.3]} 4... cxd4 {[%clk 0:02:56.3]} 5. Qxd4 {[%clk 0:02:51.5]}
5... Qxd5 {[%clk 0:02:55.1]} 6. Nc3 {[%clk 0:02:47.8]} 6... Qxd4 {[%clk
0:02:54.4]} 7. Nxd4 {[%clk 0:02:48.7]} 7... a6 {[%clk 0:02:54.5]} 8. Bg5 {[%clk
0:02:45.7]} 8... Nbd7 {[%clk 0:02:50.2]} 9. e3 {[%clk 0:02:42.5]} 9... h6 {[%clk
0:02:46.5]} 10. Bh4 {[%clk 0:02:41.3]} 10... e5 {[%clk 0:02:46]} 11. Nf3 {[%clk
0:02:32.9]} 11... Bb4 {[%clk 0:02:42.6]} 12. a3 {[%clk 0:02:29.6]} 12... Bxc3+
{[%clk 0:02:41.6]} 13. bxc3 {[%clk 0:02:29.9]} 13... Ne4 {[%clk 0:02:40.8]} 14.
Rc1 {[%clk 0:02:08.3]} 14... g5 {[%clk 0:02:39.3]} 15. Bg3 {[%clk 0:02:08]}
15... f6 {[%clk 0:02:29.7]} 16. h4 {[%clk 0:01:44.6]} 16... Nxg3 {[%clk
0:02:23.4]} 17. fxg3 {[%clk 0:01:44.5]} 17... g4 {[%clk 0:02:22]} 18. Nd2 {[%clk
0:01:41.7]} 18... Nc5 {[%clk 0:02:21.8]} 19. Bc4 {[%clk 0:01:39.2]} 19... Ke7
{[%clk 0:02:17.3]} 20. Ke2 {[%clk 0:01:38.7]} 20... Rd8 {[%clk 0:02:13.4]} 21.
Rhf1 {[%clk 0:01:34.5]} 21... b5 {[%clk 0:02:11.3]} 22. Nb3 {[%clk 0:01:21.9]}
22... Ne4 {[%clk 0:02:03.7]} 23. Bd3 {[%clk 0:01:11.1]} 23... Nxg3+ {[%clk
0:02:01.5]} 24. Kf2 {[%clk 0:01:11]} 24... Nxf1 {[%clk 0:01:59.6]} 25. Bxf1
{[%clk 0:01:11.9]} 25... Be6 {[%clk 0:01:58.1]} 26. Nc5 {[%clk 0:01:11.8]} 26...
Rdc8 {[%clk 0:01:55.7]} 27. Ne4 {[%clk 0:01:10]} 27... f5 {[%clk 0:01:54.2]} 28.
Nd2 {[%clk 0:01:07.4]} 28... Rd8 {[%clk 0:01:53.1]} 29. Ke1 {[%clk 0:01:05.4]}
29... Rac8 {[%clk 0:01:52.1]} 30. g3 {[%clk 0:01:01.8]} 30... Rc5 {[%clk
0:01:48.7]} 31. e4 {[%clk 0:00:55.7]} 31... Rdc8 {[%clk 0:01:44.3]} 32. exf5
{[%clk 0:00:52.6]} 32... Bxf5 {[%clk 0:01:45.2]} 33. c4 {[%clk 0:00:52.9]} 33...
Be6 {[%clk 0:01:41.1]} 34. Nb3 {[%clk 0:00:50.2]} 34... R5c7 {[%clk 0:01:40.1]}
35. Be2 {[%clk 0:00:37.7]} 35... Bxc4 {[%clk 0:01:35.8]} 36. Nd2 {[%clk
0:00:30.4]} 36... Bxe2 {[%clk 0:01:32]} 37. Rxc7+ {[%clk 0:00:31.3]} 37... Rxc7
{[%clk 0:01:32.3]} 38. Kxe2 {[%clk 0:00:32.2]} 38... Rc2 {[%clk 0:01:32.3]} 39.
Kd3 {[%clk 0:00:32.2]} 39... Rxd2+ {[%clk 0:01:33.1]} 40. Kxd2 {[%clk
0:00:32.6]} 40... Ke6 {[%clk 0:01:33.4]} 41. Ke3 {[%clk 0:00:32.5]} 41... Kd5
{[%clk 0:01:33.3]} 42. Kd3 {[%clk 0:00:33.2]} 42... h5 {[%clk 0:01:32.6]} 43.
Ke3 {[%clk 0:00:33.2]} 43... e4 {[%clk 0:01:31.9]} 44. Kf4 {[%clk 0:00:32]}
44... Kd4 {[%clk 0:01:32.2]} 45. Kg5 {[%clk 0:00:32.9]} 45... e3 {[%clk
0:01:32.5]} 46. Kxh5 {[%clk 0:00:33.8]} 46... e2 {[%clk 0:01:33.1]} 0-1

[Event "Late-Titled-Tuesday-Blitz-June-18-2024"]
[Site "Chess.com"]
[Date "2024.06.18"]
[Round "3"]
[White "GHANDEEVAM2003"]
[Black "farzadbfd"]
[Result "1-0"]
[WhiteElo "2987"]
[BlackElo "2711"]
[TimeControl "180+1"]
[EndTime "14:28:11 PDT"]
[Termination "GHANDEEVAM2003 won by checkmate"]

1. Nf3 {[%clk 0:03:00.9]} 1... d5 {[%clk 0:02:59.6]} 2. g3 {[%clk 0:03:01.7]}
2... Nf6 {[%clk 0:02:58.4]} 3. Bg2 {[%clk 0:03:01.3]} 3... Bf5 {[%clk
0:02:59.1]} 4. O-O {[%clk 0:03:01.2]} 4... e6 {[%clk 0:02:59.8]} 5. d3 {[%clk
0:03:00.4]} 5... h6 {[%clk 0:03:00.2]} 6. b3 {[%clk 0:02:59.4]} 6... c6 {[%clk
0:03:00.9]} 7. Bb2 {[%clk 0:02:59.2]} 7... Be7 {[%clk 0:03:01.5]} 8. Nbd2 {[%clk
0:02:59.3]} 8... O-O {[%clk 0:03:02.1]} 9. Re1 {[%clk 0:02:58.7]} 9... a5 {[%clk
0:03:02]} 10. e4 {[%clk 0:02:57.7]} 10... Bh7 {[%clk 0:03:01.4]} 11. a3 {[%clk
0:02:57.8]} 11... Na6 {[%clk 0:02:59.7]} 12. Qe2 {[%clk 0:02:57.5]} 12... Nc5
{[%clk 0:02:59.7]} 13. Ne5 {[%clk 0:02:57.9]} 13... Nfd7 {[%clk 0:02:59.2]} 14.
Nxd7 {[%clk 0:02:55.2]} 14... Qxd7 {[%clk 0:02:55.5]} 15. Qg4 {[%clk 0:02:53.9]}
15... Bg6 {[%clk 0:02:47.2]} 16. h4 {[%clk 0:02:50.6]} 16... h5 {[%clk
0:02:29.9]} 17. Qe2 {[%clk 0:02:50.5]} 17... dxe4 {[%clk 0:02:26.9]} 18. dxe4
{[%clk 0:02:48.9]} 18... Rfd8 {[%clk 0:02:12.5]} 19. Nc4 {[%clk 0:02:48.7]}
19... Qe8 {[%clk 0:01:59.6]} 20. Ne5 {[%clk 0:02:30.8]} 20... Bf6 {[%clk
0:01:57.3]} 21. Bf3 {[%clk 0:02:26.4]} 21... Bxe5 {[%clk 0:01:56.2]} 22. Bxe5
{[%clk 0:02:27.3]} 22... f6 {[%clk 0:01:55.8]} 23. Bc7 {[%clk 0:02:23.1]} 23...
Rdc8 {[%clk 0:01:37.8]} 24. Bd6 {[%clk 0:02:23.1]} 24... Nd7 {[%clk 0:01:33.1]}
25. e5 {[%clk 0:02:18.7]} 25... f5 {[%clk 0:00:51.1]} 26. c4 {[%clk 0:02:16.9]}
26... Nb6 {[%clk 0:00:31.4]} 27. Qe3 {[%clk 0:02:13.6]} 27... Ra6 {[%clk
0:00:30.3]} 28. a4 {[%clk 0:02:09.1]} 28... Nd7 {[%clk 0:00:20.1]} 29. Kh2
{[%clk 0:02:08.7]} 29... Nf8 {[%clk 0:00:20.3]} 30. Rad1 {[%clk 0:02:05.7]}
30... Rd8 {[%clk 0:00:20.6]} 31. Bc7 {[%clk 0:02:01.7]} 31... Rxd1 {[%clk
0:00:20.4]} 32. Rxd1 {[%clk 0:02:02.6]} 32... b5 {[%clk 0:00:19.9]} 33. Qc5
{[%clk 0:01:55.8]} 33... bxa4 {[%clk 0:00:19.4]} 34. Rd8 {[%clk 0:01:55.7]}
34... Qf7 {[%clk 0:00:18.7]} 35. Bd6 {[%clk 0:01:55.7]} 35... axb3 {[%clk
0:00:18.8]} 36. Rxf8+ {[%clk 0:01:48.6]} 36... Qxf8 {[%clk 0:00:18.8]} 37. Bxf8
{[%clk 0:01:49.5]} 37... b2 {[%clk 0:00:19.3]} 38. Qe7 {[%clk 0:01:50.1]} 38...
Bf7 {[%clk 0:00:19.2]} 39. Bxh5 {[%clk 0:01:50.3]} 39... b1=N {[%clk 0:00:05.9]}
40. Qxf7+ {[%clk 0:01:49.3]} 40... Kh7 {[%clk 0:00:04.5]} 41. Qxg7# {[%clk
0:01:50.2]} 1-0

[Event "Late-Titled-Tuesday-Blitz-June-18-2024"]
[Site "Chess.com"]
[Date "2024.06.18"]
[Round "3"]
[White "K-Nygren"]
[Black "jamengrand"]
[Result "1-0"]
[WhiteElo "2524"]
[BlackElo "2297"]
[TimeControl "180+1"]
[EndTime "14:28:13 PDT"]
[Termination "K-Nygren won by resignation"]

1. e4 {[%clk 0:03:00.9]} 1... c5 {[%clk 0:02:58.6]} 2. Nf3 {[%clk 0:03:00.3]}
2... Nc6 {[%clk 0:02:58.8]} 3. d4 {[%clk 0:03:00.1]} 3... cxd4 {[%clk
0:02:59.7]} 4. Nxd4 {[%clk 0:03:00.5]} 4... g6 {[%clk 0:03:00.2]} 5. c4 {[%clk
0:02:59.1]} 5... Bg7 {[%clk 0:03:00.2]} 6. Nc2 {[%clk 0:02:58.9]} 6... Nf6
{[%clk 0:02:59.4]} 7. Nc3 {[%clk 0:02:58.8]} 7... O-O {[%clk 0:02:59.4]} 8. Be2
{[%clk 0:02:58.4]} 8... d6 {[%clk 0:02:59.4]} 9. f3 {[%clk 0:02:58.4]} 9... Bd7
{[%clk 0:02:58.4]} 10. Be3 {[%clk 0:02:58.2]} 10... Qa5 {[%clk 0:02:58.2]} 11.
Rc1 {[%clk 0:02:57.5]} 11... Rfc8 {[%clk 0:02:58.2]} 12. O-O {[%clk 0:02:57]}
12... Ne5 {[%clk 0:02:57.8]} 13. b4 {[%clk 0:02:42.4]} 13... Qd8 {[%clk
0:02:54.4]} 14. c5 {[%clk 0:02:37.5]} 14... b6 {[%clk 0:02:44.3]} 15. Nd5 {[%clk
0:02:26]} 15... Nxd5 {[%clk 0:02:39.7]} 16. exd5 {[%clk 0:02:25.7]} 16... dxc5
{[%clk 0:02:38.4]} 17. f4 {[%clk 0:02:24.8]} 17... cxb4 {[%clk 0:02:09.2]} 18.
fxe5 {[%clk 0:02:23.9]} 18... Ba4 {[%clk 0:02:07.2]} 19. Bf4 {[%clk 0:02:02.5]}
19... Bxc2 {[%clk 0:02:04.6]} 20. Rxc2 {[%clk 0:02:01]} 20... Rxc2 {[%clk
0:02:05.3]} 21. Qxc2 {[%clk 0:01:59.9]} 21... Qxd5 {[%clk 0:02:05.2]} 22. Qc7
{[%clk 0:01:38.9]} 22... g5 {[%clk 0:01:51.3]} 23. Bxg5 {[%clk 0:01:22.8]} 23...
Bxe5 {[%clk 0:01:21.8]} 24. Qxe7 {[%clk 0:01:15.6]} 24... Rf8 {[%clk 0:01:11.7]}
25. Bh6 {[%clk 0:01:04.1]} 25... Bg7 {[%clk 0:00:57]} 26. Bxg7 {[%clk
0:00:52.5]} 26... Kxg7 {[%clk 0:00:55]} 27. Qf6+ {[%clk 0:00:50.8]} 27... Kg8
{[%clk 0:00:53.9]} 28. Rf5 {[%clk 0:00:40.5]} 1-0